bitfinex-derivatives/quotes_ETHF0:USTF0_20240930
["timestamp","ask_amount","ask_price","bid_price","bid_amount"]
[1727696017389,1.75838,2623.5,2623.4,0.38116]
[1727696017390,1.18666,2623.5,2623.4,0.38116]
[1727696017601,1.18434,2623.6,2623.5,0.38115]
[1727696017795,0.38116,2623.5,2623.4,0.38115]
[1727696018709,0.38116,2623.4,2623.3,1.37938821]
[1727696019995,0.7854,2623.5,2623.2,1.37940821]
[1727696020203,0.38118,2623.3,2623.2,0.38119]
[1727696020504,0.38118,2623.3,2623.2,1.83689248]
[1727696020700,0.38118,2623.3,2623.2,1.83700749]
[1727696020998,0.38118,2623.3,2623.2,1.83699749]
[1727696021698,0.38118,2623.3,2623.2,1.45581749]
[1727696022002,0.38118,2623.3,2623.2,0.99825418]
[1727696022208,0.38118,2623.3,2623.1,0.99825418]
[1727696022504,0.38119,2623.2,2623.1,0.99825418]
[1727696022704,0.38118,2623.3,2623.0,0.99825418]
[1727696022899,1.1776,2623.1,2623.0,0.99825418]
[1727696023096,1.74942,2623.1,2622.9,0.99825418]
[1727696023405,0.38122,2623.0,2622.9,1.37948418]
[1727696023611,0.38122,2623.0,2622.9,1.83761678]
[1727696024011,0.38122,2623.0,2622.9,0.38123]
[1727696024601,0.38123,2622.9,2622.8,2.6620763]
[1727696024802,0.38123,2622.9,2622.8,4.11862449]
[1727696025707,0.38123,2622.9,2622.8,4.11864892]
[1727696026209,0.38123,2622.9,2622.8,2.16700535]
[1727696026413,0.38123,2622.9,2622.8,2.16701535]
[1727696027107,4.19403,2622.9,2622.8,0.99866535]
[1727696027304,6.33712,2622.9,2622.5,0.99866535]
[1727696027503,0.38128,2622.6,2622.5,0.99866535]
[1727696028105,0.38129,2622.5,2622.4,0.99866535]
[1727696028309,1.14349,2622.5,2622.4,1.37997535]
[1727696028706,0.7622,2622.5,2622.4,1.37997535]
[1727696028908,4.16087,2623.0,2622.9,0.38122]
[1727696028909,0.38123,2623.0,2622.9,0.38122]
[1727696029503,1.5788,2623.2,2622.8,0.821]
[1727696029700,0.38121,2623.1,2623.0,0.38121]
[1727696031710,0.38123,2622.9,2622.8,2.2006832]
[1727696031924,0.38123,2622.9,2622.8,1.8194432]
[1727696032114,0.38123,2622.9,2622.8,0.821]
[1727696033016,0.38125,2622.8,2622.7,0.9984432]
[1727696033212,0.95304,2623.1,2622.6,0.38127]
[1727696033416,0.7963,2622.7,2622.5,1.7699432]
[1727696033712,0.38128,2622.6,2622.5,1.15278]
[1727696033916,0.38128,2622.6,2622.5,1.15279]
[1727696036505,0.38128,2622.6,2622.5,0.7715]
[1727696036813,0.38128,2622.6,2622.5,1.15279]
[1727696037117,1.5982,2622.7,2622.4,0.9984432]
[1727696037415,0.38131,2622.4,2622.3,3.58911]
[1727696039407,0.38131,2622.4,2622.3,3.2078]
[1727696039612,0.38131,2622.4,2622.1,0.8264]
[1727696039613,0.38134,2622.2,2622.1,1.20774]
[1727696039913,0.95331,2622.4,2622.1,0.8264]
[1727696040307,0.38136,2622.0,2621.9,1.3798132]
[1727696040507,0.95331,2622.3,2621.8,0.38138]
[1727696040508,0.38139,2621.9,2621.8,0.38138]
[1727696041310,0.38139,2621.9,2621.8,1.3798232]
[1727696041819,0.9534,2622.1,2621.8,0.9984432]
[1727696042021,1.5817,2622.2,2621.8,0.9984432]
[1727696042315,1.72328,2622.7,2622.0,0.9984432]
[1727696042509,0.38132,2622.4,2622.3,0.38131]
[1727696042709,0.95325,2622.5,2622.2,0.7942]
[1727696042916,0.38132,2622.3,2622.2,1.17552]
[1727696044714,0.38132,2622.4,2622.3,0.3813]
[1727696044923,2.3493,2622.7,2622.6,0.38128]
[1727696044924,1.19826,2622.7,2622.6,0.38128]
[1727696045215,1.19826,2622.7,2622.6,0.38126]
[1727696045216,0.38127,2622.7,2622.6,0.38126]
[1727696045711,3.2078,2622.8,2622.7,0.38126]
[1727696046816,3.2078,2622.8,2622.7,1.20016]
[1727696047718,3.2078,2622.8,2622.7,5.01296]
[1727696047918,1.21593,2623.0,2622.9,0.38123]
[1727696049223,0.8347,2623.0,2622.7,0.8189]
[1727696049421,0.38125,2622.9,2622.8,0.38123]
[1727696053317,0.38125,2622.8,2622.7,1.20015]
[1727696053820,0.38125,2622.8,2622.7,5.01295]
[1727696054824,0.38125,2622.9,2622.8,0.38124]
[1727696056124,0.8347,2623.0,2622.7,0.8189]
[1727696056324,0.8347,2623.0,2622.9,0.38123]
[1727696056529,4.40668,2623.3,2623.2,0.38119]
[1727696058728,4.0255,2623.3,2623.2,0.38119]
[1727696059238,4.40668,2623.3,2623.2,1.16469]
[1727696059526,3.2078,2623.3,2623.2,1.16469]
[1727696059734,3.58898,2623.3,2623.2,1.16469]
[1727696060327,3.2078,2623.3,2623.2,1.16469]
[1727696060727,0.38117,2623.4,2623.3,0.38118]
[1727696060928,3.2078,2624.2,2623.3,2.94661155]
[1727696061226,0.8264,2624.3,2624.1,0.38106]
[1727696061427,0.8264,2624.3,2623.6,1.4937363]
[1727696061428,0.8264,2624.3,2623.8,2.56155285]
[1727696061637,0.8264,2624.3,2624.1,0.38106]
[1727696062226,0.8264,2624.3,2623.8,6.58595285]
[1727696062525,0.8264,2624.3,2623.9,3.97343979]
[1727696062739,0.8264,2624.3,2624.2,0.38104]
[1727696063931,42.77319,2624.6,2624.3,0.38102]
[1727696064133,42.3922,2624.6,2623.9,3.97343979]
[1727696064328,1.21358,2624.7,2624.4,0.38101]
[1727696064529,0.8326,2624.7,2624.4,0.38101]
[1727696064837,0.8326,2624.7,2624.1,3.2078]
[1727696065032,0.8326,2624.7,2624.4,0.381]
[1727696065232,0.8326,2624.7,2624.5,0.381]
[1727696065540,1.21358,2624.7,2624.4,0.38101]
[1727696065726,0.8326,2624.7,2624.5,0.381]
[1727696066737,3.2078,2624.9,2624.8,0.38096]
[1727696069844,3.2078,2624.9,2624.4,4.0472]
[1727696070146,0.381,2624.6,2624.4,0.38101]
[1727696070348,1.6092,2624.8,2624.5,0.381]
[1727696070539,0.381,2624.6,2624.4,0.38101]
[1727696070738,0.38102,2624.4,2624.3,0.8118]
[1727696071036,0.38103,2624.3,2624.2,0.38104]
[1727696071349,0.8296,2624.3,2624.2,0.38104]
[1727696071741,0.8296,2624.3,2624.0,3.58886]
[1727696071742,0.38105,2624.2,2624.0,3.58886]
[1727696071945,0.38106,2624.1,2624.0,3.2078]
[1727696072939,0.7983,2624.2,2623.7,3.2078]
[1727696073148,0.38111,2623.8,2623.7,0.38112]
[1727696073335,0.38109,2624.0,2623.8,0.3811]
[1727696073538,0.3811,2623.8,2623.7,0.38111]
[1727696074236,0.95267,2624.1,2623.6,0.7695]
[1727696074436,0.3811,2623.9,2623.7,0.38111]
[1727696074638,0.38111,2623.8,2623.6,1.15062]
[1727696075146,0.38111,2623.8,2623.7,0.38112]
[1727696075549,0.38109,2623.9,2623.7,0.38111]
[1727696075841,41.75266,2624.1,2623.7,0.38111]
[1727696076039,0.3811,2623.8,2623.7,0.38111]
[1727696076242,41.75266,2624.1,2623.7,0.38111]
[1727696076452,0.3811,2623.9,2623.7,0.38111]
[1727696077543,0.3811,2623.9,2623.7,0.38112]
[1727696078153,0.3811,2623.9,2623.6,0.7695]
[1727696078451,0.38108,2624.0,2623.8,0.38109]
[1727696078752,44.38887,2624.1,2623.9,0.38108]
[1727696079048,0.38107,2624.0,2623.8,0.38109]
[1727696079344,0.38109,2623.9,2623.7,0.38111]
[1727696079751,0.38109,2623.9,2623.8,0.3811]
[1727696080149,0.38108,2624.0,2623.8,0.3811]
[1727696082045,0.38108,2624.0,2623.9,0.38109]
[1727696082443,0.38109,2623.9,2623.8,0.3811]
[1727696083155,3.2078,2624.1,2623.6,0.7695]
[1727696083345,3.2078,2624.1,2623.7,0.9528]
[1727696083550,3.58887,2624.1,2623.7,0.38112]
[1727696083749,3.58887,2624.1,2623.6,1.72232]
[1727696083955,3.58887,2624.1,2624.0,0.38107]
[1727696084358,1.17935,2624.2,2623.8,0.95276]
[1727696084652,1.17935,2624.2,2624.1,0.38106]
[1727696085554,0.7983,2624.2,2624.1,0.38106]
[1727696085857,1.17934,2624.2,2624.1,0.38106]
[1727696086041,0.7983,2624.2,2624.1,0.38106]
[1727696086248,1.17934,2624.2,2624.1,0.38106]
[1727696086951,0.7983,2624.2,2624.1,0.38106]
[1727696087145,0.7983,2624.2,2623.9,0.95272]
[1727696087146,1.21063,2624.3,2624.2,0.38104]
[1727696087656,0.8296,2624.3,2624.2,0.38104]
[1727696089056,0.38104,2624.2,2624.1,1.18315]
[1727696089358,1.21064,2624.3,2624.2,0.38104]
[1727696089545,0.8296,2624.3,2624.2,0.38104]
[1727696090350,1.21063,2624.3,2624.2,0.38104]
[1727696091761,0.8296,2624.3,2624.1,0.8021]
[1727696091971,1.21064,2624.3,2624.2,0.38104]
[1727696092750,0.8296,2624.3,2624.1,0.8021]
[1727696093254,1.21064,2624.3,2624.2,0.38104]
[1727696094059,0.8296,2624.3,2624.2,0.38104]
[1727696094858,1.2203,2624.6,2624.2,0.38104]
[1727696095058,1.2203,2624.6,2624.1,1.75474]
[1727696095059,0.38101,2624.5,2624.4,0.38101]
[1727696095353,0.8203,2624.6,2624.5,0.381]
[1727696095753,3.2078,2624.7,2624.6,0.38099]
[1727696096057,3.58879,2624.7,2624.5,0.381]
[1727696096357,3.58877,2624.7,2624.6,0.38099]
[1727696096551,0.38099,2624.6,2624.5,0.38099]
[1727696096751,0.95241,2624.8,2624.6,0.38098]
[1727696096752,0.38098,2624.7,2624.6,0.38098]
[1727696096952,0.38099,2624.6,2624.5,0.38099]
[1727696097348,0.38099,2624.6,2624.5,0.381]
[1727696097552,0.95241,2624.8,2624.4,1.632]
[1727696097764,0.38099,2624.7,2624.5,0.381]
[1727696097959,0.38099,2624.7,2624.4,1.632]
[1727696098157,0.38099,2624.7,2624.6,0.38099]
[1727696098957,0.38099,2624.6,2624.5,0.38099]
[1727696099349,0.38098,2624.7,2624.6,0.38098]
[1727696099659,1.75994,2625.0,2624.6,0.38098]
[1727696099856,0.38095,2624.9,2624.8,0.38095]
[1727696100157,0.8076,2625.0,2624.9,0.38094]
[1727696100158,1.18854,2625.0,2624.9,0.38094]
[1727696100661,0.8076,2625.0,2624.9,0.38094]
[1727696102259,1.18853,2625.0,2624.9,0.38094]
[1727696102452,0.38096,2624.8,2624.7,1.17217]
[1727696102655,0.38096,2624.8,2624.7,0.7912]
[1727696103059,0.38099,2624.6,2624.5,0.38099]
[1727696103456,0.38099,2624.6,2624.5,4.41765202]
[1727696103666,0.38098,2624.7,2624.6,0.38098]
[1727696104352,0.38099,2624.6,2624.5,0.38099]
[1727696104957,0.38098,2624.7,2624.6,0.38098]
[1727696105165,0.38099,2624.6,2624.5,0.381]
[1727696105354,0.381,2624.5,2624.4,4.35441]
[1727696105560,0.95245,2624.7,2624.4,3.9734]
[1727696105765,0.38099,2624.6,2624.4,4.35441]
[1727696105962,0.38102,2624.4,2624.3,0.38102]
[1727696106171,1.22351,2624.5,2624.2,0.38104]
[1727696106464,1.22351,2624.5,2624.4,0.38102]
[1727696106864,0.95255,2624.4,2624.0,0.38106]
[1727696107057,0.38106,2624.1,2624.0,0.38106]
[1727696107356,2.54239,2624.3,2623.9,0.8376]
[1727696107558,0.8425,2624.0,2623.9,1.21869]
[1727696107765,1.97084,2624.3,2624.2,0.38104]
[1727696107964,0.38106,2624.1,2624.0,0.38107]
[1727696108268,2.54239,2624.3,2623.9,0.8376]
[1727696108464,0.38106,2624.1,2624.0,0.38107]
[1727696108969,1.5898,2624.3,2624.1,0.38106]
[1727696109170,0.8067,2624.3,2624.2,0.38104]
[1727696109467,1.18773,2624.3,2624.2,0.38104]
[1727696109667,1.18773,2624.3,2624.0,1.76955285]
[1727696109876,1.18773,2624.3,2624.2,0.38104]
[1727696110364,1.18773,2624.3,2624.1,0.38105]
[1727696110571,1.18773,2624.3,2624.2,0.38104]
[1727696111364,0.8067,2624.3,2624.0,1.76955285]
[1727696111665,0.38106,2624.2,2624.0,0.38107]
[1727696111862,0.38106,2624.2,2624.1,0.38106]
[1727696112065,0.8067,2624.3,2623.9,1.83455285]
[1727696112272,0.8067,2624.3,2624.2,0.38104]
[1727696112273,1.18774,2624.3,2624.2,0.38104]
[1727696112472,1.18774,2624.3,2623.9,1.83455285]
[1727696112473,0.38105,2624.2,2624.1,0.38106]
[1727696112771,0.38106,2624.1,2624.0,0.38107]
[1727696112969,1.7593,2624.3,2623.9,1.83455285]
[1727696113173,0.8303,2624.2,2623.9,2.21563285]
[1727696113375,0.38107,2624.0,2623.9,0.99695285]
[1727696113677,0.38109,2623.9,2623.8,0.99695285]
[1727696113869,1.17369,2623.9,2623.8,0.99695285]
[1727696114065,1.17369,2623.9,2623.8,1.37805285]
[1727696114564,1.17369,2623.9,2623.8,0.99695285]
[1727696115067,0.7926,2623.9,2623.8,1.37805285]
[1727696115268,0.7926,2623.9,2623.8,2.83114968]
[1727696115468,0.7926,2623.9,2623.8,1.83419683]
[1727696115971,0.7926,2623.9,2623.8,2.83146814]
[1727696116178,0.7926,2623.9,2623.8,3.32793313]
[1727696117176,0.8067,2624.3,2623.8,2.94683313]
[1727696117370,0.38105,2624.2,2624.1,0.38105]
[1727696117571,0.8067,2624.3,2623.9,0.99733685]
[1727696117880,0.8067,2624.3,2624.0,0.38106]
[1727696118080,0.8067,2624.3,2623.9,0.99733685]
[1727696118270,1.18774,2624.3,2624.2,0.38104]
[1727696118471,0.8067,2624.3,2624.1,0.99733685]
[1727696118980,0.38104,2624.2,2624.1,1.37838685]
[1727696119472,4.19144,2624.2,2624.1,1.37839685]
[1727696120368,4.19144,2624.2,2624.1,0.38106]
[1727696120971,0.38106,2624.1,2624.0,0.99733685]
[1727696121287,3.8104,2624.2,2623.6,1.76643685]
[1727696121288,7.0182,2624.2,2623.6,1.76643685]
[1727696121580,0.8067,2624.3,2623.7,0.38111]
[1727696121581,0.38111,2623.8,2623.7,0.38111]
[1727696122684,1.1598,2623.9,2623.8,0.3811]
[1727696123075,0.38111,2623.8,2623.7,0.38111]
[1727696123277,0.38112,2623.7,2623.6,2.14756685]
[1727696123480,0.38112,2623.7,2623.6,0.99733685]
[1727696123782,0.38112,2623.7,2623.2,0.99733685]
[1727696123969,0.38112,2623.7,2623.2,1.83793685]
[1727696124173,0.38115,2623.5,2623.3,4.71116478]
[1727696124374,0.8087,2623.4,2623.3,4.33000478]
[1727696124680,1.18987,2623.4,2623.2,0.8406]
[1727696124875,0.38118,2623.3,2623.2,0.8406]
[1727696125078,0.8146,2623.3,2623.2,0.8406]
[1727696125676,1.19578,2623.3,2623.2,0.8406]
[1727696127482,0.8146,2623.3,2623.2,0.8406]
[1727696127873,1.19578,2623.3,2623.2,0.8406]
[1727696128179,4.6266,2623.3,2623.0,3.2078]
[1727696128373,0.8146,2623.3,2622.8,1.16824]
[1727696128574,0.38121,2623.1,2622.9,0.38123]
[1727696128969,0.38123,2623.0,2622.8,1.16824]
[1727696129177,1.19803,2622.9,2622.6,0.99733685]
[1727696129492,0.8168,2622.9,2622.5,3.36463685]
[1727696129777,1.19804,2622.9,2622.7,0.38126]
[1727696130078,0.7669,2622.8,2622.7,0.38126]
[1727696130383,0.38128,2622.6,2622.2,0.99733685]
[1727696130673,0.7669,2622.8,2622.2,0.8191]
[1727696130674,1.20677,2622.7,2622.2,0.8191]
[1727696130877,1.20677,2622.7,2622.4,0.3813]
[1727696131379,1.14815,2622.8,2622.6,0.38128]
[1727696131573,0.7669,2622.8,2622.4,0.38131]
[1727696131781,1.14815,2622.8,2622.6,0.38127]
[1727696132282,1.14815,2622.8,2622.3,4.2921429]
[1727696132470,1.14815,2622.8,2622.5,0.38128]
[1727696132675,0.38127,2622.7,2622.5,0.38128]
[1727696133186,0.7669,2622.8,2622.3,4.2921429]
[1727696133479,0.38128,2622.6,2622.5,0.38129]
[1727696134075,0.38127,2622.7,2622.3,4.2921429]
[1727696134278,0.8168,2622.9,2622.8,0.38125]
[1727696135686,1.19803,2622.9,2622.8,0.38125]
[1727696135983,0.8168,2622.9,2622.8,0.38125]
[1727696136189,1.19803,2622.9,2622.8,0.38125]
[1727696136586,0.8168,2622.9,2622.8,0.38125]
[1727696136789,1.19803,2622.9,2622.8,0.38125]
[1727696137185,0.3812,2623.2,2623.1,0.3812]
[1727696137386,0.38121,2623.1,2623.0,0.38121]
[1727696137594,0.38119,2623.2,2623.0,0.38121]
[1727696137892,1.5534,2623.4,2623.1,0.38119]
[1727696138086,0.38119,2623.3,2623.1,0.38119]
[1727696139180,1.5534,2623.4,2623.1,0.38119]
[1727696139388,0.38119,2623.2,2623.0,0.38121]
[1727696139785,0.38119,2623.2,2623.1,0.3812]
[1727696140289,0.38118,2623.3,2623.1,0.3812]
[1727696140488,0.38119,2623.2,2623.1,0.3812]
[1727696141083,1.5534,2623.4,2622.8,4.41304895]
[1727696141284,0.38118,2623.3,2623.2,0.38118]
[1727696141887,1.93457,2623.4,2623.2,0.38118]
[1727696142490,0.38119,2623.3,2623.1,0.38119]
[1727696142693,1.5534,2623.4,2623.2,0.38119]
[1727696143088,1.93457,2623.4,2623.2,0.38119]
[1727696144192,0.38118,2623.3,2623.0,0.758]
[1727696144396,0.38119,2623.3,2623.1,0.3812]
[1727696144591,0.38121,2623.1,2623.0,0.38121]
[1727696144799,0.38122,2623.1,2622.9,0.38122]
[1727696144989,0.38122,2623.0,2622.9,0.38122]
[1727696145699,0.38122,2623.0,2622.8,4.21877223]
[1727696145700,0.38121,2623.1,2623.0,0.38122]
[1727696146001,0.8066,2623.2,2623.1,0.3812]
[1727696146002,1.18779,2623.2,2623.1,0.3812]
[1727696146392,0.8066,2623.2,2622.8,5.17189223]
[1727696146600,0.38121,2623.1,2623.0,0.38121]
[1727696149198,0.38121,2623.1,2622.8,7.42657223]
[1727696149199,1.1878,2623.2,2623.1,0.3812]
[1727696149891,0.8066,2623.2,2622.8,7.42657223]
[1727696150092,0.38121,2623.1,2623.0,0.38121]
[1727696151594,0.8066,2623.2,2622.8,7.42657223]
[1727696151899,0.38121,2623.1,2623.0,0.38121]
[1727696152497,0.38121,2623.1,2623.0,0.3812]
[1727696152702,0.8066,2623.2,2622.8,8.37970223]
[1727696152891,1.5534,2623.4,2622.8,7.42657223]
[1727696153090,0.38118,2623.3,2623.2,0.38118]
[1727696153496,1.16507,2623.4,2623.3,0.38118]
[1727696153702,0.7839,2623.4,2622.8,5.15825685]
[1727696154000,1.16507,2623.4,2623.3,0.38118]
[1727696161414,0.38121,2623.2,2623.1,0.38119]
[1727696162516,0.38122,2623.0,2622.9,1.13323]
[1727696162718,1.90596,2623.2,2622.5,0.99733685]
[1727696162719,7.0198,2623.2,2622.5,0.99733685]
[1727696162917,0.38128,2622.6,2622.5,0.38128]
[1727696163605,0.7674,2622.7,2622.4,0.752]
[1727696164015,0.38127,2622.7,2622.6,0.38128]
[1727696164209,0.38128,2622.6,2622.4,0.752]
[1727696164409,0.38128,2622.6,2622.4,1.13331]
[1727696164612,0.38128,2622.6,2622.4,0.752]
[1727696164816,0.95313,2622.8,2622.4,0.752]
[1727696165118,0.38129,2622.6,2622.4,0.752]
[1727696165418,0.38131,2622.4,2622.3,0.99733685]
[1727696166012,0.3813,2622.5,2622.3,0.99733685]
[1727696166215,0.758,2622.4,2622.3,0.99733685]
[1727696166415,1.5247,2622.4,2622.2,0.99733685]
[1727696166718,1.90601,2622.4,2622.2,0.99733685]
[1727696167312,1.5247,2622.4,2622.1,1.82933685]
[1727696167617,1.5247,2622.4,2622.2,0.99733685]
[1727696167810,1.90601,2622.4,2622.2,0.99733685]
[1727696168010,1.5247,2622.4,2622.2,2.49107315]
[1727696168212,1.5247,2622.4,2622.3,0.99733685]
[1727696168411,1.90601,2622.4,2622.3,0.99733685]
[1727696168618,5.71961,2622.4,2622.3,0.99733685]
[1727696170118,0.38132,2622.3,2622.2,0.99733685]
[1727696170510,0.38134,2622.2,2622.1,0.99733685]
[1727696170716,0.38135,2622.1,2622.0,0.99733685]
[1727696171225,0.38135,2622.1,2621.9,0.99733685]
[1727696171415,1.5247,2622.4,2622.0,0.99733685]
[1727696171616,1.5247,2622.4,2622.1,0.99733685]
[1727696171918,0.38133,2622.3,2622.1,0.99733685]
[1727696173824,1.5247,2622.4,2622.1,0.99733685]
[1727696174025,0.38132,2622.3,2622.1,0.99733685]
[1727696174322,1.5247,2622.4,2622.1,0.99733685]
[1727696174527,0.38134,2622.2,2622.1,0.99733685]
[1727696175319,0.38134,2622.2,2622.0,0.99733685]
[1727696175925,1.5247,2622.4,2622.0,0.99733685]
[1727696176121,3.2078,2622.6,2622.1,0.99733685]
[1727696176316,3.2078,2622.6,2621.9,1.4937363]
[1727696176317,0.38129,2622.5,2622.2,3.84136685]
[1727696176527,3.9773,2622.6,2622.2,3.46003685]
[1727696176729,0.38127,2622.7,2622.5,0.38129]
[1727696176922,0.38127,2622.7,2622.6,0.8318]
[1727696177225,0.38126,2622.7,2622.6,0.8318]
[1727696181732,3.2078,2623.5,2622.6,16.07454373]
[1727696181925,3.2078,2623.5,2623.0,3.2078]
[1727696182120,0.38117,2623.4,2623.2,0.38118]
[1727696182721,0.95292,2623.4,2622.9,0.99697749]
[1727696183039,2.3807,2623.8,2622.8,0.99697749]
[1727696183040,4.16079,2623.2,2622.8,0.99697749]
[1727696183326,0.38126,2622.7,2622.6,7.3378]
[1727696183533,0.38126,2622.7,2622.6,3.2078]
[1727696183732,3.2078,2622.8,2622.4,2.57607749]
[1727696183921,0.38129,2622.5,2622.4,1.5791]
[1727696184125,0.38132,2622.3,2622.2,4.20477749]
[1727696184324,0.38131,2622.4,2622.2,0.38133]
[1727696184726,1.75554,2622.5,2622.2,0.8322]
[1727696184940,0.38132,2622.3,2622.2,0.8322]
[1727696185229,0.38132,2622.4,2622.2,1.21354]
[1727696186533,0.38131,2622.4,2622.2,1.21354]
[1727696186931,0.38131,2622.4,2622.2,1.21353]
[1727696187823,0.38131,2622.4,2622.3,0.38132]
[1727696188632,1.1836,2622.5,2622.3,0.38132]
[1727696189035,0.38131,2622.4,2622.3,0.38132]
[1727696189439,0.38126,2622.8,2622.4,0.95327]
[1727696189630,3.589,2623.2,2623.0,0.38121]
[1727696189934,0.38119,2623.2,2622.7,5.15792749]
[1727696190129,2.51274,2623.4,2622.8,1.5586]
[1727696190338,0.38119,2623.2,2623.0,0.38121]
[1727696191342,0.38118,2623.3,2623.1,0.38119]
[1727696191538,0.38118,2623.3,2623.2,1.17149]
[1727696191837,0.38118,2623.3,2623.2,0.7903]
[1727696193435,0.38118,2623.3,2623.0,1.17531]
[1727696193637,0.3812,2623.1,2623.0,0.38121]
[1727696193838,0.3812,2623.1,2622.9,1.17152]
[1727696194243,0.95296,2623.3,2623.0,0.38121]
[1727696194438,0.38119,2623.2,2623.0,0.38121]
[1727696194640,0.38121,2623.1,2622.9,1.17152]
[1727696194837,0.38123,2622.9,2622.8,0.99697749]
[1727696195041,0.38127,2622.7,2622.5,1.37826749]
[1727696195343,0.38127,2622.7,2622.5,0.38129]
[1727696195544,1.5029,2622.8,2622.4,1.76527749]
[1727696195545,0.38129,2622.5,2622.4,1.76527749]
[1727696195839,0.38131,2622.4,2622.2,1.37830749]
[1727696196146,0.38132,2622.4,2622.2,1.37830749]
[1727696196640,0.38132,2622.3,2622.2,0.99697749]
[1727696196845,0.9532,2622.6,2622.2,0.99697749]
[1727696197047,0.38131,2622.4,2622.2,1.37830749]
[1727696197440,0.9532,2622.6,2622.2,0.99697749]
[1727696197441,0.38132,2622.3,2622.2,0.99697749]
[1727696197647,0.38132,2622.3,2622.1,0.99697749]
[1727696197838,0.38134,2622.2,2622.0,3.47422624]
[1727696198045,0.38133,2622.3,2622.1,2.83199811]
[1727696198239,0.38132,2622.4,2622.2,0.38133]
[1727696199339,0.38132,2622.4,2622.0,0.7683]
[1727696199546,0.38132,2622.4,2622.1,0.38134]
[1727696199734,0.38132,2622.4,2622.2,0.38133]
[1727696201340,0.7551,2622.5,2622.0,0.7683]
[1727696201640,0.38132,2622.4,2622.1,0.38134]
[1727696201844,0.38131,2622.5,2622.2,0.38133]
[1727696202042,0.38129,2622.6,2622.3,0.38131]
[1727696202248,2.45606,2622.8,2622.1,3.2078]
[1727696202544,0.38129,2622.6,2622.4,0.38131]
[1727696203645,0.95319,2622.7,2622.4,0.38131]
[1727696203841,0.95319,2622.7,2622.3,0.38131]
[1727696204041,1.5029,2622.8,2622.1,3.2078]
[1727696204042,0.38131,2622.4,2622.2,0.38132]
[1727696204440,4.7107,2622.8,2622.3,0.38132]
[1727696204639,0.3813,2622.5,2622.3,0.38132]
[1727696204838,0.95316,2622.7,2622.1,3.2078]
[1727696205038,0.3813,2622.5,2622.3,0.38132]
[1727696205238,0.38131,2622.4,2622.1,3.2078]
[1727696205446,0.38131,2622.4,2622.2,0.38133]
[1727696205641,0.38131,2622.4,2622.1,3.2078]
[1727696205839,0.38131,2622.4,2622.3,0.38132]
[1727696206040,0.95316,2622.7,2622.1,3.2078]
[1727696206242,0.95324,2622.5,2622.2,0.38133]
[1727696206436,0.38132,2622.4,2622.2,0.38133]
[1727696206642,0.38132,2622.3,2622.1,3.58914]
[1727696206838,0.7573,2622.4,2622.1,3.2078]
[1727696207038,0.38134,2622.2,2622.1,3.58915]
[1727696207238,0.38134,2622.2,2622.1,3.2078]
[1727696208349,2.51979,2622.4,2622.1,3.58915]
[1727696208350,0.38133,2622.3,2622.1,3.58915]
[1727696210043,0.38133,2622.3,2622.1,3.2078]
[1727696210242,0.38133,2622.3,2622.1,3.58915]
[1727696211746,0.38133,2622.3,2622.1,3.2078]
[1727696211952,2.51979,2622.4,2622.1,3.2078]
[1727696212151,0.38134,2622.2,2622.1,3.2078]
[1727696212745,0.38138,2621.9,2621.8,3.2078]
[1727696212941,0.38139,2621.8,2621.6,1.80761867]
[1727696213147,1.94629,2621.8,2621.5,1.37874867]
[1727696213353,0.38141,2621.7,2621.6,2.95044008]
[1727696213643,0.38141,2621.7,2621.6,1.45497384]
[1727696214039,0.38141,2621.7,2621.6,0.99859186]
[1727696214438,0.38142,2621.6,2621.5,0.99859186]
[1727696214647,1.17252,2621.6,2621.5,0.99859186]
[1727696214849,0.7911,2621.6,2621.5,0.99859186]
[1727696215647,1.17252,2621.6,2621.5,0.99859186]
[1727696215853,1.17252,2621.6,2621.4,0.99859186]
[1727696216762,0.38145,2621.4,2621.3,0.99859186]
[1727696216955,0.38145,2621.4,2621.2,1.80889186]
[1727696217457,0.38145,2621.4,2621.2,0.99859186]
[1727696217458,0.38146,2621.4,2621.2,0.99859186]
[1727696217647,1.13957,2621.3,2621.2,0.99859186]
[1727696217849,0.7581,2621.3,2621.1,0.99859186]
[1727696218358,0.7581,2621.3,2621.0,0.99859186]
[1727696219052,0.7581,2621.3,2621.0,1.38009186]
[1727696220651,0.7581,2621.3,2621.0,0.99859186]
[1727696220853,0.7581,2621.3,2621.0,1.38010186]
[1727696221048,0.7581,2621.3,2620.9,1.76929186]
[1727696221356,0.7581,2621.3,2620.9,2.15081186]
[1727696221653,0.7581,2621.3,2620.9,1.15222]
[1727696222054,1.13957,2621.3,2620.9,1.15222]
[1727696222251,1.13957,2621.3,2620.9,0.7707]
[1727696222449,0.38149,2621.2,2620.9,0.7707]
[1727696222754,0.7581,2621.3,2620.9,0.7707]
[1727696222949,1.1284,2621.1,2620.9,0.7707]
[1727696226153,0.7469,2621.1,2620.9,0.7707]
[1727696226658,0.38151,2621.0,2620.9,0.7707]
[1727696227154,0.38151,2621.0,2620.7,3.9719]
[1727696227357,0.7469,2621.1,2620.7,0.809]
[1727696227358,1.70067,2621.1,2620.7,0.809]
[1727696227562,1.13744,2620.9,2620.7,0.809]
[1727696227765,0.7559,2620.9,2620.7,0.809]
[1727696227955,0.7559,2620.9,2620.3,1.9121]
[1727696227956,4.5719,2620.9,2620.3,1.9121]
[1727696228255,1.70067,2621.1,2620.4,6.15537297]
[1727696228256,0.7469,2621.1,2620.4,6.15537297]
[1727696228456,1.1284,2621.1,2620.7,0.38155]
[1727696228662,0.7469,2621.1,2620.8,2.3788]